bitfinex/quotes_BTCUSD_20240820
["timestamp","ask_amount","ask_price","bid_price","bid_amount"]
[1724128424769,0.164244,60885.0,60882.0,0.164251]
[1724128425098,0.164244,60885.0,60880.0,0.492768]
[1724128425301,0.164244,60885.0,60881.0,0.164252]
[1724128425887,0.002,60885.0,60882.0,0.328502]
[1724128426072,0.002,60885.0,60883.0,0.164248]
[1724128427177,0.165066,60887.0,60883.0,0.166248]
[1724128427612,0.002,60885.0,60883.0,0.164248]
[1724128427901,0.165066,60887.0,60883.0,0.164248]
[1724128428191,0.165066,60887.0,60884.0,0.164246]
[1724128428397,0.000826,60887.0,60884.0,0.164246]
[1724128428617,0.000826,60887.0,60885.0,0.164243]
[1724128429238,0.002826,60887.0,60884.0,0.164245]
[1724128430026,0.002826,60887.0,60885.0,0.001]
[1724128430441,0.000826,60887.0,60884.0,0.164245]
[1724128430821,0.002826,60887.0,60884.0,0.164245]
[1724128431019,0.002826,60887.0,60884.0,0.165245]
[1724128431230,0.1879,60886.0,60884.0,0.001]
[1724128431454,0.1511,60885.0,60884.0,0.001]
[1724128432062,0.1511,60885.0,60878.0,0.4936906]
[1724128432063,0.164252,60883.0,60878.0,0.4936906]
[1724128432321,0.1511,60885.0,60881.0,0.164254]
[1724128432322,0.2074,60884.0,60881.0,0.164254]
[1724128433513,0.371646,60884.0,60881.0,0.164254]
[1724128434208,0.2074,60884.0,60881.0,0.168254]
[1724128435445,0.371647,60884.0,60881.0,0.005]
[1724128435597,0.371647,60884.0,60881.0,0.001]
[1724128435795,0.371647,60884.0,60881.0,0.165254]
[1724128436018,0.371647,60884.0,60881.0,0.168254]
[1724128436220,0.371647,60884.0,60881.0,0.167254]
[1724128436426,0.371647,60884.0,60881.0,0.164254]
[1724128436750,0.371647,60884.0,60881.0,0.168254]
[1724128438597,0.112,60882.0,60881.0,0.004]
[1724128439285,0.3097,60882.0,60881.0,0.004]
[1724128439754,0.3097,60882.0,60881.0,0.001]
[1724128439918,0.3097,60882.0,60881.0,0.005]
[1724128440134,0.3097,60882.0,60881.0,0.02764027]
[1724128440559,0.473952,60882.0,60881.0,0.02764027]
[1724128440764,0.3097,60882.0,60881.0,0.007]
[1724128443520,1.13096,60882.0,60881.0,0.007]
[1724128443694,1.29106,60882.0,60881.0,0.007]
[1724128444610,1.29106,60882.0,60881.0,0.005]
[1724128444773,0.36216,60879.0,60878.0,0.0009086]
[1724128444963,0.47416,60879.0,60878.0,0.0009086]
[1724128445366,1.46264877,60879.0,60878.0,0.0009086]
[1724128446190,1.46564877,60879.0,60878.0,0.0009086]
[1724128447361,1.79416877,60879.0,60878.0,0.0009086]
[1724128447984,1.79916877,60879.0,60878.0,0.0009086]
[1724128448322,1.35864877,60879.0,60878.0,0.0009086]
[1724128448533,1.14512877,60879.0,60878.0,0.0009086]
[1724128450406,1.47364877,60879.0,60878.0,0.0009086]
[1724128451973,1.14512877,60879.0,60878.0,0.0009086]
[1724128452246,1.14512877,60879.0,60868.0,0.3294866]
[1724128452247,0.79984148,60879.0,60868.0,0.0009086]
[1724128452485,1.30008377,60869.0,60868.0,0.0009086]
[1724128452638,1.78415777,60869.0,60868.0,0.0009086]
[1724128452839,1.94137122,60869.0,60868.0,0.0009086]
[1724128453241,1.82937122,60869.0,60868.0,0.0009086]
[1724128453478,1.44358377,60869.0,60868.0,0.0009086]
[1724128453778,1.55558377,60869.0,60868.0,0.0019086]
[1724128454560,1.44358377,60869.0,60868.0,0.0019086]
[1724128454979,1.45758377,60869.0,60868.0,0.0019086]
[1724128455152,1.45758377,60869.0,60868.0,0.0009086]
[1724128455353,1.45658377,60869.0,60868.0,0.0019086]
[1724128455757,1.46958377,60869.0,60868.0,0.0019086]
[1724128456085,1.45658377,60869.0,60868.0,0.0009086]
[1724128456237,1.46658377,60869.0,60868.0,0.0019086]
[1724128457890,1.79515777,60869.0,60868.0,0.0019086]
[1724128458128,1.21108377,60869.0,60868.0,0.0019086]
[1724128464204,0.187287,60869.0,60868.0,0.0019086]
[1724128464452,0.023,60869.0,60868.0,0.3184976]
[1724128464696,0.023,60869.0,60868.0,0.65799719]
[1724128465420,0.013,60869.0,60868.0,0.65699719]
[1724128465666,0.02,60869.0,60868.0,0.65799719]
[1724128466149,0.164274,60874.0,60869.0,0.164284]
[1724128466382,0.000826,60878.0,60869.0,0.328572]
[1724128466620,0.000826,60878.0,60872.0,0.328556]
[1724128466857,0.000826,60878.0,60872.0,0.33184122]
[1724128467090,0.16509,60878.0,60872.0,0.328556]
[1724128467305,0.16509,60878.0,60873.0,0.328552]
[1724128467516,0.16509,60878.0,60875.0,0.164271]
[1724128468145,0.17409,60878.0,60875.0,0.164271]
[1724128468347,0.16509,60878.0,60876.0,0.01078617]
[1724128468548,0.16509,60878.0,60875.0,0.164271]
[1724128468747,0.17409,60878.0,60876.0,0.01078617]
[1724128468991,0.17409,60878.0,60875.0,0.164271]
[1724128469194,0.17409,60878.0,60877.0,0.01076593]
[1724128469422,0.17409,60878.0,60876.0,0.01078273]
[1724128469602,0.18009,60878.0,60875.0,0.165271]
[1724128469824,0.18009,60878.0,60877.0,0.01076593]
[1724128470017,0.18009,60878.0,60876.0,0.01078273]
[1724128470219,0.17409,60878.0,60876.0,0.01078273]
[1724128470473,0.17409,60878.0,60875.0,0.164271]
[1724128470474,0.16509,60878.0,60875.0,0.164271]
[1724128470689,0.17409,60878.0,60875.0,0.164271]
[1724128471091,0.16509,60878.0,60874.0,0.164273]
[1724128471303,0.17409,60878.0,60874.0,0.164273]
[1724128471753,0.000826,60878.0,60870.0,0.1925]
[1724128471959,0.164272,60875.0,60871.0,0.16428]
[1724128472166,0.164267,60877.0,60871.0,0.01086675]
[1724128472373,0.164269,60876.0,60872.0,0.164279]
[1724128472580,0.164269,60876.0,60871.0,0.01086675]
[1724128472795,0.164269,60876.0,60873.0,0.01083314]
[1724128472992,0.164269,60876.0,60872.0,0.17512894]
[1724128473150,0.164271,60875.0,60874.0,0.01081634]
[1724128473359,0.164271,60875.0,60872.0,0.164279]
[1724128473561,0.164271,60875.0,60874.0,0.01081634]
[1724128473762,0.004,60876.0,60873.0,0.01083314]
[1724128473962,0.004,60876.0,60872.0,0.164279]
[1724128473963,0.004,60876.0,60874.0,0.01081634]
[1724128474162,0.164271,60875.0,60872.0,0.164279]
[1724128474486,0.1121,60874.0,60872.0,0.164279]
[1724128475015,0.1121,60874.0,60871.0,0.164281]
[1724128475362,0.164271,60875.0,60871.0,0.164281]
[1724128475363,0.169271,60875.0,60871.0,0.164281]
[1724128475567,0.0621,60872.0,60871.0,0.164281]
[1724128477092,0.0621,60872.0,60871.0,0.165281]
[1724128477498,0.000826,60878.0,60874.0,0.164271]
[1724128477703,0.1121,60875.0,60874.0,0.164273]
[1724128478288,0.165091,60878.0,60874.0,0.164273]
[1724128478536,0.165091,60878.0,60875.0,0.16427]
[1724128478537,0.1121,60877.0,60875.0,0.16427]
[1724128480036,0.1121,60877.0,60873.0,0.328549]
[1724128480037,0.1121,60877.0,60876.0,0.164268]
[1724128480219,0.1121,60877.0,60875.0,0.164271]
[1724128480914,0.1241,60877.0,60875.0,0.164271]
[1724128481288,0.1241,60877.0,60874.0,0.328546]
[1724128481992,0.1241,60877.0,60875.0,0.16427]
[1724128482211,0.1241,60877.0,60874.0,0.164273]
[1724128482738,0.1191,60877.0,60874.0,0.164273]
[1724128482957,0.1171,60877.0,60874.0,0.164273]
[1724128483319,0.012,60877.0,60871.0,0.328562]
[1724128483524,0.012,60877.0,60876.0,0.167268]
[1724128483675,0.012,60877.0,60876.0,0.164268]
[1724128483872,0.012,60877.0,60876.0,0.492804]
[1724128484081,0.007,60877.0,60876.0,0.492804]
[1724128484498,0.005,60877.0,60876.0,0.492804]
[1724128484852,0.005,60877.0,60876.0,0.495804]
[1724128485026,0.012,60877.0,60876.0,0.495804]
[1724128485808,0.007,60877.0,60876.0,0.495804]
[1724128486013,0.012,60877.0,60876.0,0.495804]
[1724128486832,0.164283,60871.0,60867.0,0.012086]
[1724128487176,0.1983,60873.0,60867.0,0.009086]
[1724128487177,0.276387,60869.0,60867.0,0.009086]
[1724128487888,0.1121,60869.0,60867.0,0.010086]
[1724128488296,0.164282,60871.0,60867.0,0.010086]
[1724128488500,0.1121,60869.0,60867.0,0.174377]
[1724128488856,0.1121,60869.0,60867.0,0.010086]
[1724128489062,0.1121,60869.0,60868.0,0.0029086]
[1724128489257,0.164285,60870.0,60868.0,0.02355881]
[1724128489578,0.1121,60869.0,60868.0,0.0009086]
[1724128489881,0.1121,60869.0,60868.0,0.0049086]
[1724128490095,0.1121,60869.0,60868.0,0.02555887]
[1724128490536,0.1121,60869.0,60868.0,0.0049086]
[1724128490740,0.1121,60869.0,60868.0,0.0059086]
[1724128490741,0.968761,60869.0,60868.0,0.0059086]
[1724128492049,0.640187,60869.0,60868.0,0.0019086]
[1724128492274,0.640187,60869.0,60868.0,0.0039086]
[1724128492506,1.297335,60869.0,60868.0,0.0039086]
[1724128492741,1.297335,60869.0,60868.0,0.0019086]
[1724128493194,1.298335,60869.0,60868.0,0.0019086]
[1724128494448,1.298335,60869.0,60868.0,0.0009086]
[1724128494857,1.298335,60869.0,60868.0,0.0019086]
[1724128495065,1.298335,60869.0,60868.0,0.0009086]
[1724128495853,0.969761,60869.0,60868.0,0.0009086]
[1724128496303,0.973761,60869.0,60868.0,0.0009086]
[1724128497150,1.302335,60869.0,60868.0,0.0009086]
[1724128497460,0.973761,60869.0,60868.0,0.0009086]
[1724128498609,1.14510977,60869.0,60868.0,0.0009086]
[1724128499038,1.47368377,60869.0,60868.0,0.0009086]
[1724128504394,1.31718377,60869.0,60868.0,0.0009086]
[1724128504630,1.20508377,60869.0,60868.0,0.0009086]
[1724128505119,1.31718377,60869.0,60868.0,0.0009086]
[1724128510738,1.31756847,60869.0,60868.0,0.0009086]
[1724128512676,1.11026847,60869.0,60868.0,0.0009086]
[1724128512876,0.0053847,60869.0,60868.0,0.0009086]
[1724128513262,0.0053847,60869.0,60868.0,0.17592801]
[1724128513475,0.0053847,60869.0,60868.0,0.34021701]
[1724128513688,0.0013847,60869.0,60868.0,0.34021701]
[1724128513885,0.0013847,60869.0,60868.0,0.99737501]
[1724128514065,0.0043847,60869.0,60868.0,1.02101809]
[1724128514216,0.0043847,60869.0,60868.0,1.55299709]
[1724128514859,0.0043847,60869.0,60868.0,1.58617791]
[1724128515044,0.0043847,60869.0,60868.0,2.20020568]
[1724128515216,0.0003847,60869.0,60868.0,2.21318724]
[1724128515417,0.0003847,60869.0,60868.0,2.14997039]
[1724128515623,0.0003847,60869.0,60868.0,2.14897039]
[1724128515804,0.0003847,60869.0,60868.0,1.64404262]
[1724128516052,0.0003847,60869.0,60868.0,1.59515947]
[1724128516266,0.0003847,60869.0,60868.0,1.58717791]
[1724128516515,0.0003847,60869.0,60868.0,1.58617791]
[1724128516836,0.0013847,60869.0,60868.0,1.58717791]
[1724128517219,0.0013847,60869.0,60868.0,1.58617791]
[1724128518062,0.0013847,60869.0,60868.0,1.59017791]
[1724128518431,0.0023847,60869.0,60868.0,1.58717791]
[1724128518633,0.0013847,60869.0,60868.0,1.58717791]
[1724128518834,0.0023847,60869.0,60868.0,1.59817791]
[1724128519036,0.0033847,60869.0,60868.0,1.59917791]
[1724128519312,0.0033847,60869.0,60868.0,1.59717791]
[1724128519539,0.0033847,60869.0,60868.0,1.59917791]
[1724128519886,0.0033847,60869.0,60868.0,1.03401809]
[1724128520543,0.0033847,60869.0,60868.0,1.03101809]
[1724128521081,0.0033847,60869.0,60868.0,1.03201809]
[1724128521474,0.0033847,60869.0,60868.0,1.22441809]
[1724128521696,0.0033847,60869.0,60868.0,1.22141809]
[1724128521847,0.0033847,60869.0,60868.0,1.55299709]
[1724128522055,0.0033847,60869.0,60868.0,1.54999709]
[1724128522274,0.0033847,60869.0,60868.0,1.58917646]
[1724128522472,0.0033847,60869.0,60868.0,1.58916888]
[1724128523308,0.0033847,60869.0,60868.0,1.58616888]
[1724128523511,0.0033847,60869.0,60868.0,1.58916888]
[1724128523717,0.0033847,60869.0,60868.0,1.58616888]
[1724128524269,0.0033847,60869.0,60868.0,1.58916888]
[1724128524898,0.0033847,60869.0,60868.0,1.58616888]
[1724128525490,0.0033847,60869.0,60868.0,1.58916888]
[1724128525862,0.0033847,60869.0,60868.0,2.08709665]
[1724128526063,0.0033847,60869.0,60868.0,2.09346037]
[1724128526274,0.0033847,60869.0,60868.0,2.1140948]
[1724128526405,0.0033847,60869.0,60868.0,2.1100948]
[1724128526808,0.0033847,60869.0,60868.0,2.1140948]
[1724128527011,0.0033847,60869.0,60868.0,2.1100948]
[1724128527206,0.0033847,60869.0,60868.0,2.11409373]
[1724128527846,0.0033847,60869.0,60868.0,2.11009373]
[1724128529244,0.0033847,60869.0,60868.0,2.11209373]
[1724128529437,0.0033847,60869.0,60868.0,2.11409373]
[1724128529736,0.0033847,60869.0,60868.0,2.09109373]
[1724128530902,0.0033847,60869.0,60868.0,1.58916596]
[1724128531334,0.0033847,60869.0,60868.0,1.55298844]
[1724128532666,0.0033847,60869.0,60868.0,1.54998844]
[1724128533007,0.0033847,60869.0,60868.0,1.58616716]
[1724128533486,0.0033847,60869.0,60868.0,1.39976716]
[1724128533687,0.0033847,60869.0,60868.0,1.23466716]
[1724128534307,0.0033847,60869.0,60868.0,1.19848844]
[1724128534527,0.0023847,60869.0,60868.0,1.18748844]
[1724128534717,0.0033847,60869.0,60868.0,1.17785401]
[1724128534847,0.0013847,60869.0,60868.0,0.86790369]
[1724128535051,0.0023847,60869.0,60868.0,0.90508248]
[1724128535249,0.0013847,60869.0,60868.0,0.85790369]
[1724128535463,0.0023847,60869.0,60868.0,0.86890369]
[1724128536552,0.0023847,60869.0,60868.0,0.90508248]
[1724128538299,0.0023847,60869.0,60868.0,0.86890369]
[1724128538532,0.0023847,60869.0,60868.0,0.90508266]
[1724128539719,0.0023847,60869.0,60868.0,0.04445669]
[1724128539720,0.3329847,60869.0,60868.0,0.04445669]
[1724128540122,0.3329847,60869.0,60868.0,0.02382801]
[1724128540254,0.2829847,60869.0,60868.0,0.02382801]
[1724128540431,0.2829847,60869.0,60868.0,0.04445746]
[1724128540637,0.2829847,60869.0,60868.0,0.03345746]
[1724128540843,0.2829847,60869.0,60868.0,0.03545746]
[1724128541262,0.2829847,60869.0,60868.0,0.03645746]
[1724128541502,0.2829847,60869.0,60868.0,0.03345746]
[1724128541702,0.2829847,60869.0,60868.0,0.20074646]
[1724128541918,0.2829847,60869.0,60868.0,0.03645746]
[1724128542137,0.2829847,60869.0,60868.0,0.20074646]
[1724128542287,0.190926,60872.0,60871.0,0.164281]
[1724128542486,0.190926,60872.0,60871.0,0.51347345]
[1724128542691,0.190926,60872.0,60871.0,0.52433836]
[1724128544279,0.192926,60872.0,60871.0,0.52433836]
[1724128545134,0.190926,60872.0,60871.0,0.52433836]
[1724128546003,0.190926,60872.0,60871.0,0.52633836]
[1724128546239,0.190926,60872.0,60871.0,0.52633917]
[1724128546693,0.000826,60872.0,60871.0,0.83427191]
[1724128546873,0.000826,60872.0,60871.0,0.85490146]
[1724128547074,0.000826,60872.0,60871.0,0.85990146]
[1724128549556,0.512005,60872.0,60871.0,0.03849446]
[1724128550110,0.512005,60872.0,60871.0,0.01786491]
[1724128550505,0.512005,60872.0,60871.0,0.01286491]
[1724128550702,0.512005,60872.0,60871.0,0.01086491]
[1724128550907,0.513005,60872.0,60871.0,0.001]
[1724128551117,0.513005,60872.0,60871.0,0.01186491]
[1724128551326,0.513005,60872.0,60871.0,0.01086491]
[1724128551526,0.1795,60871.0,60869.0,0.164286]
[1724128551734,0.3008,60870.0,60869.0,0.164286]
[1724128551932,0.3008,60870.0,60869.0,0.1849165]
[1724128554242,0.3008,60870.0,60869.0,0.168286]
[1724128554440,0.3008,60870.0,60869.0,0.18891097]
[1724128554642,0.3008,60870.0,60869.0,0.19980949]
[1724128555020,0.31041661,60870.0,60869.0,0.19980949]
[1724128556449,0.3008,60870.0,60869.0,0.19980949]
[1724128558779,0.3008,60870.0,60869.0,0.19980961]
[1724128559444,0.1121,60871.0,60870.0,0.164283]
[1724128559853,0.1121,60871.0,60870.0,0.17516471]
[1724128560446,0.1121,60871.0,60870.0,0.19578925]
[1724128560648,0.000826,60872.0,60871.0,0.164281]
[1724128560853,0.000826,60872.0,60870.0,0.03350625]
[1724128560854,0.000826,60872.0,60870.0,0.01288171]
[1724128561263,0.000826,60872.0,60871.0,0.492844]
[1724128561465,0.000826,60872.0,60871.0,0.84502795]
[1724128561700,0.000826,60872.0,60871.0,1.36017009]
[1724128562079,0.001826,60872.0,60871.0,1.36017009]
[1724128562797,0.001826,60872.0,60871.0,1.36117009]
[1724128563255,0.000826,60872.0,60871.0,1.36017009]
[1724128563460,0.000826,60872.0,60871.0,1.84228377]
[1724128563664,0.002826,60872.0,60871.0,2.56703285]
[1724128563872,0.001826,60872.0,60871.0,2.91400843]
[1724128564069,0.001826,60872.0,60871.0,3.06331767]
[1724128564300,0.001826,60872.0,60871.0,3.06531767]
[1724128564301,0.002826,60872.0,60871.0,3.06531767]
[1724128564603,0.002826,60872.0,60871.0,3.05631767]
[1724128564604,0.001826,60872.0,60871.0,3.05631767]
[1724128564806,0.001826,60872.0,60871.0,3.04732858]
[1724128565141,1e-08,60872.0,60871.0,3.0562977]
[1724128565341,1e-08,60872.0,60871.0,4.1748607]
[1724128565545,0.00096001,60872.0,60871.0,4.77074702]
[1724128565754,0.00096001,60872.0,60871.0,3.9965876]
[1724128565952,0.00096001,60872.0,60871.0,3.48667862]
[1724128566176,0.00096001,60872.0,60871.0,3.48267862]
[1724128566417,0.00096001,60872.0,60871.0,3.39670128]
[1724128566623,0.00096001,60872.0,60871.0,3.6926054]
[1724128566772,0.00106396,60878.0,60877.0,1.821689]
[1724128566972,0.00106396,60878.0,60877.0,2.66884636]
[1724128567145,0.00106396,60878.0,60877.0,4.16884636]
[1724128567352,0.00106396,60878.0,60877.0,4.22758226]
[1724128567995,9.6e-07,60878.0,60877.0,4.88464426]
[1724128568198,9.6e-07,60878.0,60877.0,6.25829641]
[1724128568373,0.00100096,60878.0,60877.0,6.26109601]
[1724128568577,0.5,60880.0,60879.0,2.47868]
[1724128568838,0.5,60880.0,60879.0,3.21375956]
[1724128569029,0.5,60880.0,60879.0,3.35499485]
[1724128569228,0.25929381,60880.0,60879.0,5.60498808]
[1724128569480,0.25929381,60880.0,60879.0,4.85498808]
[1724128569481,0.16073781,60880.0,60879.0,4.85498808]
[1724128569828,0.16173781,60880.0,60879.0,4.8689848]
[1724128570237,0.16173781,60880.0,60879.0,4.84206566]
[1724128570457,0.16173781,60880.0,60879.0,5.85186566]
[1724128570671,0.16173781,60880.0,60879.0,5.93313527]
[1724128570873,0.16273781,60880.0,60879.0,5.86586566]
[1724128571028,0.12988581,60880.0,60879.0,5.86586566]
[1724128571241,0.12988581,60880.0,60879.0,5.80624808]
[1724128571242,0.06418181,60880.0,60879.0,5.80624808]
[1724128571438,0.03132981,60880.0,60879.0,5.92759673]
[1724128571854,0.03132981,60880.0,60879.0,5.92756047]
[1724128572250,0.000826,60885.0,60883.0,1.81036752]
[1724128572439,0.000826,60885.0,60883.0,2.51101846]
[1724128572638,0.000826,60885.0,60883.0,2.49239493]
[1724128572865,0.000826,60885.0,60883.0,4.02148793]
[1724128573067,0.000826,60885.0,60883.0,4.08017555]
[1724128573298,0.000826,60885.0,60883.0,4.09417555]
[1724128573500,0.00229136,60884.0,60883.0,4.09417555]
[1724128573704,0.00229136,60884.0,60883.0,4.10817555]
[1724128573857,3.6e-07,60885.0,60884.0,1.96060104]
[1724128574055,3.6e-07,60885.0,60884.0,3.67771775]
[1724128574257,3.6e-07,60885.0,60884.0,3.68994867]
[1724128574469,3.6e-07,60885.0,60884.0,5.18994867]
[1724128574847,3.6e-07,60885.0,60884.0,5.23844823]
[1724128575372,3.6e-07,60885.0,60884.0,5.18994867]
[1724128576143,3.6e-07,60885.0,60884.0,5.20394867]
[1724128576387,0.00100036,60885.0,60884.0,5.21794867]
[1724128576966,0.00100036,60885.0,60884.0,5.15928537]
[1724128577119,3.6e-07,60885.0,60884.0,5.14528537]
[1724128577319,3.6e-07,60885.0,60884.0,5.13128537]
[1724128577526,3.6e-07,60885.0,60884.0,5.14528537]
[1724128578128,3.6e-07,60885.0,60884.0,5.15928537]
[1724128578330,3.6e-07,60885.0,60884.0,5.16897517]
[1724128579148,3.6e-07,60885.0,60884.0,5.15497517]
[1724128579357,3.6e-07,60885.0,60884.0,5.14097517]
[1724128579557,0.00100036,60885.0,60884.0,5.16897517]
[1724128580122,1e-08,60887.0,60886.0,1.80984104]
[1724128580333,1e-08,60887.0,60886.0,3.65249498]
[1724128580532,1e-08,60887.0,60886.0,3.32401298]
[1724128580753,1e-08,60887.0,60886.0,4.8034206]
[1724128580952,1e-08,60887.0,60886.0,4.82401599]
[1724128581166,0.00100001,60887.0,60886.0,4.83801567]
[1724128581732,0.00100001,60887.0,60886.0,4.83801744]
[1724128582313,0.1825,60904.0,60892.0,1.15276504]
[1724128582520,0.1825,60904.0,60892.0,1.44711381]
[1724128582721,0.1825,60904.0,60892.0,1.46730219]
[1724128583124,0.1825,60904.0,60892.0,1.80090219]
[1724128583323,0.1472,60906.0,60892.0,1.1152592]
[1724128583501,0.185626,60893.0,60892.0,0.78021381]
[1724128583686,0.185626,60893.0,60892.0,0.27941504]
[1724128583939,0.185626,60893.0,60892.0,0.28747686]
[1724128584347,0.186626,60893.0,60892.0,0.30147686]
[1724128584840,0.186626,60893.0,60892.0,0.03606182]
[1724128585047,0.831192,60893.0,60892.0,0.03606182]
[1724128585232,0.338526,60893.0,60892.0,0.028]
[1724128585472,0.502748,60893.0,60892.0,0.014]
[1724128585679,0.338526,60893.0,60892.0,0.014]
[1724128585881,0.337526,60893.0,60892.0,0.014]
[1724128586237,0.338526,60893.0,60892.0,0.014]
[1724128586598,0.2028,60892.0,60889.0,0.164232]
[1724128587632,0.2028,60892.0,60890.0,0.17635809]
[1724128589589,0.2028,60892.0,60891.0,0.164227]
[1724128589994,0.2028,60892.0,60890.0,0.01412909]
[1724128590169,0.2028,60892.0,60891.0,0.164227]
[1724128590375,0.2038,60892.0,60890.0,0.01412909]
[1724128590537,0.2028,60892.0,60891.0,0.164227]
[1724128590732,0.2028,60892.0,60890.0,0.01212909]
[1724128590956,0.2028,60892.0,60890.0,0.17635909]
[1724128591177,0.2028,60892.0,60890.0,0.17230814]
[1724128591441,0.2028,60892.0,60890.0,0.00807814]
[1724128591613,0.2028,60892.0,60891.0,0.164227]
[1724128592020,0.2028,60892.0,60891.0,0.166227]
[1724128592229,0.2028,60892.0,60891.0,0.17430514]
[1724128592628,0.2028,60892.0,60891.0,0.50276014]
[1724128593220,0.2028,60892.0,60891.0,0.50376014]
[1724128593620,0.2028,60892.0,60891.0,0.50076014]
[1724128594008,0.2028,60892.0,60891.0,0.50176014]
[1724128595322,0.2028,60892.0,60891.0,0.50076014]
[1724128595520,0.2028,60892.0,60891.0,0.50476014]
[1724128595725,0.2028,60892.0,60891.0,0.50976014]
[1724128597504,0.2028,60892.0,60891.0,0.85883619]
[1724128597721,0.2028,60892.0,60891.0,0.53038119]
[1724128597926,0.2028,60892.0,60891.0,0.50976014]
[1724128598140,0.2028,60892.0,60891.0,0.18130514]
[1724128598340,0.2028,60892.0,60891.0,0.50976014]
[1724128598547,0.364,60892.0,60891.0,0.50976014]
[1724128601952,0.364,60892.0,60891.0,0.18221374]
[1724128602179,0.364826,60892.0,60891.0,0.01798674]
[1724128603181,0.364826,60892.0,60891.0,0.0099086]
[1724128603357,0.364826,60892.0,60891.0,0.01251075]
[1724128603555,0.364826,60892.0,60891.0,0.0009086]
[1724128604165,0.52945801,60892.0,60891.0,0.0009086]
[1724128604361,0.85790801,60892.0,60891.0,0.0009086]
[1724128604842,0.85790801,60892.0,60891.0,0.0029086]
[1724128605571,1.18635801,60892.0,60891.0,0.0029086]
[1724128605995,0.85790801,60892.0,60891.0,0.0029086]
[1724128606653,0.52945801,60892.0,60891.0,0.0029086]
[1724128607026,0.52945801,60892.0,60891.0,0.01411531]
[1724128607905,0.85790801,60892.0,60891.0,0.01411531]
[1724128609459,0.85790801,60892.0,60891.0,0.0029086]
[1724128612237,0.85790801,60892.0,60891.0,0.01411605]
[1724128612443,0.85790801,60892.0,60891.0,0.0029086]
[1724128612645,0.85790801,60892.0,60891.0,0.01411605]
[1724128612852,0.85790801,60892.0,60891.0,0.0029086]
[1724128613006,0.96990801,60892.0,60891.0,0.01411605]
[1724128613416,0.64145801,60892.0,60891.0,0.01411605]
[1724128614881,1.29835801,60892.0,60891.0,0.01411605]
[1724128615111,1.79915678,60892.0,60891.0,0.0029086]
[1724128615304,1.79815678,60892.0,60891.0,0.0029086]
[1724128615871,1.80797745,60892.0,60891.0,0.0029086]
[1724128616049,1.80797745,60892.0,60891.0,0.0009086]
[1724128616255,1.80797745,60892.0,60891.0,0.0019086]
[1724128616571,1.80897745,60892.0,60891.0,0.0019086]
[1724128616797,1.79815678,60892.0,60891.0,0.0009086]
[1724128616989,1.80215678,60892.0,60891.0,0.0009086]
[1724128617181,1.80115678,60892.0,60891.0,0.0009086]
[1724128617381,1.68915678,60892.0,60891.0,0.0009086]
[1724128617608,1.80115678,60892.0,60891.0,0.0009086]
[1724128618350,1.79815678,60892.0,60891.0,0.0009086]
[1724128618550,1.79815678,60892.0,60891.0,0.00041778]
[1724128618551,1.80115678,60892.0,60891.0,0.00041778]
[1724128621006,1.79015678,60892.0,60891.0,0.00041778]
[1724128621369,1.90296674,60892.0,60891.0,0.00041778]
[1724128622448,1.89996674,60892.0,60891.0,0.00041778]
[1724128622681,1.89996674,60892.0,60891.0,0.00141778]
[1724128622886,1.89909506,60892.0,60891.0,0.00141778]
[1724128623118,1.89909506,60892.0,60891.0,0.00041778]
[1724128623290,1.79509506,60892.0,60891.0,0.00141778]
[1724128623427,1.90709506,60892.0,60891.0,0.00241778]
[1724128624371,1.89909506,60892.0,60891.0,0.00141778]
[1724128624591,1.95850828,60892.0,60891.0,0.00141778]
[1724128624967,2.34904915,60892.0,60891.0,0.00241778]
[1724128625498,2.18695828,60892.0,60891.0,0.00241778]
[1724128625701,2.29895828,60892.0,60891.0,0.00241778]
[1724128626327,2.29855127,60892.0,60891.0,0.00241778]
[1724128626703,2.29895828,60892.0,60891.0,0.00241778]
[1724128628201,2.23954506,60892.0,60891.0,0.00241778]
[1724128629248,2.39268078,60892.0,60891.0,0.00241778]
[1724128631694,1.91109506,60892.0,60891.0,0.00241778]
[1724128633505,1.85851525,60892.0,60891.0,0.00241778]
[1724128633708,1.97051525,60892.0,60891.0,0.00241778]
[1724128633903,1.91109506,60892.0,60891.0,0.00241778]
[1724128634508,1.97051648,60892.0,60891.0,0.00241778]
[1724128635092,1.97051648,60892.0,60891.0,0.00200706]
[1724128635468,2.14186525,60892.0,60891.0,0.00200706]
[1724128635671,1.97051648,60892.0,60891.0,0.00200706]
[1724128637047,1.85851648,60892.0,60891.0,0.00200706]
[1724128637248,1.97051648,60892.0,60891.0,0.00200706]
[1724128638260,1.85851648,60892.0,60891.0,0.00200706]
[1724128638464,1.53006648,60892.0,60891.0,0.00200706]
[1724128638685,0.8791851,60892.0,60891.0,0.00200706]
[1724128639088,0.21516133,60892.0,60891.0,0.00200706]
[1724128640198,0.21516133,60892.0,60891.0,0.00100706]
[1724128641105,0.20316133,60892.0,60891.0,7.06e-06]
[1724128641478,0.20816133,60892.0,60891.0,0.16423406]
[1724128641680,0.20816133,60892.0,60891.0,7.06e-06]
[1724128643774,0.20816133,60892.0,60891.0,0.49268906]
[1724128644088,0.00623301,60892.0,60891.0,0.51331786]
[1724128644289,0.00623301,60892.0,60891.0,0.57481786]
[1724128644976,0.005826,60892.0,60891.0,0.90327286]
[1724128645186,0.005826,60892.0,60891.0,0.88327258]
[1724128645369,0.005826,60892.0,60891.0,0.90327155]
[1724128645940,0.005826,60892.0,60891.0,0.84177155]
[1724128647436,0.005826,60892.0,60891.0,0.02063455]
[1724128647437,0.00623301,60892.0,60891.0,0.02063455]
[1724128647639,0.25205801,60892.0,60891.0,7.06e-06]
[1724128647836,0.08783301,60892.0,60891.0,7.06e-06]
[1724128648035,0.25205801,60892.0,60891.0,7.06e-06]
[1724128649764,0.08783301,60892.0,60891.0,7.06e-06]
[1724128650294,0.25205801,60892.0,60891.0,7.06e-06]
[1724128651004,0.08783301,60892.0,60891.0,7.06e-06]
[1724128652156,0.25205801,60892.0,60891.0,7.06e-06]
[1724128653184,0.087426,60892.0,60891.0,7.06e-06]
[1724128653391,0.08783301,60892.0,60891.0,0.16423406]
[1724128654471,0.08783301,60892.0,60891.0,7.06e-06]
[1724128656113,0.81665678,60892.0,60891.0,7.06e-06]
[1724128656303,0.81765678,60892.0,60891.0,7.06e-06]
[1724128656507,0.81665678,60892.0,60891.0,7.06e-06]
[1724128660598,0.42340678,60892.0,60891.0,7.06e-06]
[1724128661165,0.08783301,60892.0,60891.0,0.16423406]